Cogmind - Beta 14 @@@ ROGUE MODE // 2024.12.05 @ 22:57:52 Player: hoganstuff Result: Destroyed by Y-54 Guardian with Gatling Laser Performance ------------- Evolutions (0) 0 Regions Visited (3) 600 Robots Destroyed (25) 125 Value Destroyed (673) 673 Prototype IDs (11) 220 Alien Tech Used (0) 0 Bonus (0) 0 TOTAL SCORE: 1618 Bonus ------- None Cogmind --------- Core Integrity 0/250 Matter 133/300 Energy 160/160 System Corruption 0% Temperature Hot (207) Movement Core (350) Ox6 Location -7/Recycling Parts ------- > --- POWER (1) -------- Light Nuclear Core > --- PROPULSION (2) --- (None) > --- UTILITY (2) ------ Small Storage Unit Insulated Plating > --- WEAPON (2) ------- Barrage Gun Battle Cannon > --- INVENTORY (8) ---- Heat Sink Sensor Array Signal Interpreter Gun Armor Particle Gun Subdweller Laser Battle Cannon Missile Launcher Peak State ------------ > --- POWER ------------ Light Nuclear Core > --- PROPULSION ------- Subdweller Monowheel Subdweller Monowheel > --- UTILITY ---------- Small Storage Unit Insulated Plating > --- WEAPON ----------- Barrage Gun Battle Cannon > --- INVENTORY -------- Heat Sink Sensor Array Signal Interpreter Gun Armor Particle Gun Subdweller Laser Subdweller Laser Battle Cannon [Rating: 18] Favorites ----------- Power Ion Engine Engine Ion Engine Power Core Light Nuclear Core Propulsion Light Treads Treads Light Treads Wheel Subdweller Monowheel Hover Unit Backup Propulsion I Utility Targeting Computer Device Structural Scanner Storage High-capacity Storage Unit Processor Targeting Computer Protection Insulated Plating Weapon Assault Rifle Energy Gun Small Laser Ballistic Gun Assault Rifle Ballistic Cannon Battle Cannon Launcher Subdweller Shrapnel Launcher Build | -11 -10 -10 -7 ------- Run | Yrd Mat Sub Rec Slots Evolved . | . . . . Power . | . . . . Propulsion . | . . . . Utility . | . . . . Weapon . | . . . . Parts Attached 24 | 6 6 11 1 Power 2 | 1 . 1 . Engine 1 | 1 . . . Core 1 | . . 1 . Reactor . | . . . . Propulsion 7 | 2 1 4 . Treads 3 | 2 1 . . Leg . | . . . . Wheel 3 | . . 3 . Hover 1 | . . 1 . Flight . | . . . . Utility 7 | 1 4 1 1 Device 1 | . 1 . . Storage 3 | 1 1 1 . Processor 2 | . 2 . . Hackware . | . . . . Protection 1 | . . . 1 Artifact . | . . . . Weapon 8 | 2 1 5 . Energy Gun 4 | 1 1 2 . Energy Cannon . | . . . . Ballistic Gun 2 | 1 . 1 . Ballistic Cannon 1 | . . 1 . Launcher 1 | . . 1 . Special Weapon . | . . . . Impact Weapon . | . . . . Slashing Weapon . | . . . . Piercing Weapon . | . . . . Special Melee Weapon . | . . . . Unidentified Prototypes . | . . . . Parts Lost 5 | . . 4 1 Power 1 | . . 1 . Propulsion 3 | . . 2 1 Utility . | . . . . Weapon 1 | . . 1 . Highest Loss Streak 3 | . . 3 1 To Critical Strikes . | . . . . Average Slot Usage (%) 94 | . 98 91 94 Engine 8 | . 14 4 . Core 1 | . . 1 14 Treads 17 | . 28 9 . Wheel 6 | . . 10 22 Hover 4 | . . 7 . Storage 14 | . 14 14 14 Processor 12 | . 10 14 8 Energy Gun 9 | . 14 6 . Ballistic Gun 8 | . 14 2 14 Ballistic Cannon 6 | . . 11 14 Launcher 3 | . . 6 . Peak Build Rating 18 | 6 8 16 18 Average Rating 9 | 4 7 10 16 On Entrance 7 | . 6 8 16 Naked Turns . | . . . . Heaviest Build 56 | 13 49 56 19 Greatest Support 40 | 40 40 40 20 Greatest Overweight (x) 3 | 3 1 2 . Average Overweight (x) . | . . . . Largest Inventory Capacity 20 | 8 20 20 8 Average Capacity 14 | 7 17 12 8 Most Carried 11 | 1 9 11 8 Average Carried 6 | . 5 8 8 Final Capacity 20 | 8 20 8 8 Final Carried 9 | 1 9 8 8 Class Distribution -------------------- 100% | Mutant Dominant Class ---------------- Mutant | -10/Materials Mutant | -10/Subcaves Mutant | -7/Recycling Resources | -11 -10 -10 -7 ----------- Run | Yrd Mat Sub Rec Matter Collected 758 | 260 123 372 3 Remotely . | . . . . Salvage Created 511 | . 252 259 . Parts 44 | . 17 27 . Haulers Intercepted 1 | . 1 . . Recyclers Shooed 3 | . 3 . . Parts Field Recycled . | . . . . Retrieved Matter . | . . . . Parts Self-Destructed 23 | . . 23 . Prevented . | . . . . Kills | -11 -10 -10 -7 ------- Run | Yrd Mat Sub Rec Combat Hostiles Destroyed 20 | . 4 16 . Guns 10 | . 4 6 . Cannons 1 | . . 1 . AOE 9 | . . 9 . Classes Destroyed 6 | . 3 3 . Hauler 1 | . 1 . . Turret 2 | . . 2 . Watcher 2 | . 2 . . Swarmer 7 | . . 7 . Grunt 4 | . 4 . . Subdweller 9 | . . 9 . Best Kill Streak 6 | . 3 6 . Combat Bots Only 5 | . 2 5 . Max Kills in Single Turn 3 | . 1 3 . Gunslinging . | . . . . Exploded 3 | . . 3 . Melee . | . . . . Uniques/NPCs Destroyed . | . . . . Combat | -11 -10 -10 -7 -------- Run | Yrd Mat Sub Rec Hostile Shots Fired 119 | . 23 57 39 Missed 46 | . 8 26 12 Damage Taken 1098 | . 282 625 191 Core 252 | . 108 117 27 Absorbed by Shields . | . . . . Core Remaining (%) 100 | 100 . . . Volleys Fired 61 | . 22 34 5 Largest 2 | . 2 2 2 Hottest 99 | . 60 99 67 Shots Fired 119 | . 44 65 10 Gun 69 | . 44 20 5 Cannon 39 | . . 34 5 Launcher 11 | . . 11 . Special . | . . . . Kinetic 80 | . 22 48 10 Thermal 39 | . 22 17 . Explosive . | . . . . Electromagnetic . | . . . . Robot Hit Streak 8 | . 8 7 7 Robot Miss Streak 2 | . 2 1 1 Penetration Max . | . . . . Secondary Targets . | . . . . Shots Hit Robots 74 | . 32 34 8 Core Hits 39 | . 15 23 1 Critical Kills 1 | . . 1 . Critical Parts Destroyed 1 | . . 1 . Critical Strikes 4 | . . 3 1 Destroy 2 | . . 2 . Blast 2 | . . 1 1 Melee Attacks . | . . . . Impact . | . . . . Slashing . | . . . . Piercing . | . . . . Sneak Attacks . | . . . . Combat Hostiles . | . . . . Follow-up Attacks . | . . . . Damage Inflicted 2296 | . 402 1734 160 Guns 658 | . 382 219 57 Cannons 404 | . . 301 103 Explosions 1214 | . . 1214 . Melee . | . . . . Ramming 20 | . 20 . . Kinetic 1938 | . 231 1547 160 Thermal 338 | . 151 187 . Explosive . | . . . . Electromagnetic . | . . . . Impact . | . . . . Slashing . | . . . . Piercing . | . . . . Highest Corruption . | . . . . Average Corruption . | . . . . Corruption Purged . | . . . . Corruption Blocked . | . . . . Overload Shots . | . . . . Overflow Damage 17 | . . 17 . Projectiles . | . . . . Explosions 17 | . . 17 . Melee . | . . . . Knockbacks 1 | . . 1 . Impact . | . . . . Kinetic 1 | . . 1 . Secondary . | . . . . Self-Inflicted Damage 20 | . . 20 . Shots 2 | . . 2 . Rammed 4 | . 4 . . Targets Rammed 4 | . 4 . . Kicked . | . . . . Crushed . | . . . . Highest Temperature 201 | . 36 13 201 Average Temperature 43 | . 18 8 110 Received Heat Transfer 207 | . 111 42 54 Siege Activations . | . . . . Robots Corrupted . | . . . . Combat Hostiles . | . . . . Parts Fried . | . . . . Impact Corruptions . | . . . . Robots Melted . | . . . . Combat Hostiles . | . . . . Parts Melted . | . . . . Heat Transferred 575 | . 350 225 . Parts Sabotaged . | . . . . Parts Stolen . | . . . . Parts Stripped . | . . . . Power Chain Reactions . | . . . . Alert | -11 -10 -10 -7 ------- Run | Yrd Mat Sub Rec Peak Influence 120 | . 92 . 120 Initial 120 | . . . 120 Average 40 | . 34 . 119 Maximum Alert Level . | . . . . Low Security (%) 100 | 100 100 . 100 Level 1 . | . . . . Level 2 . | . . . . Level 3 . | . . . . Level 4 . | . . . . Level 5 . | . . . . High Security . | . . . . Max Security . | . . . . Squads Dispatched . | . . . . Investigation . | . . . . Extermination . | . . . . Reinforcement . | . . . . Assault . | . . . . Garrison . | . . . . Intercept . | . . . . Searches Triggered . | . . . . Construction Impeded . | . . . . Haulers Reinforced . | . . . . Active Scanning Responses . | . . . . Cargo Convoy Interrupts . | . . . . Stealth | -11 -10 -10 -7 --------- Run | Yrd Mat Sub Rec Distress Signals . | . . . . Communications Jammed . | . . . . Distress Signals . | . . . . Times Spotted 34 | . 10 22 2 Peak Tracking Total 6 | . 3 6 2 Tactical Retreats 3 | . 2 1 . Traps | -11 -10 -10 -7 ------- Run | Yrd Mat Sub Rec Traps Triggered 2 | . 1 1 . Indirectly . | . . . . Trap Hack Attempts . | . . . . Triggered . | . . . . Disarmed . | . . . . Reprogrammed . | . . . . Reused . | . . . . Traps Extracted . | . . . . Installed . | . . . . Triggered . | . . . . Machines | -11 -10 -10 -7 ---------- Run | Yrd Mat Sub Rec Machines Disabled 1 | . . 1 . Max in Single Turn 1 | . . 1 . Machines Repaired . | . . . . Machines Dismantled . | . . . . Machines Sabotaged . | . . . . Overloaded Fab Kills . | . . . . Hacking | -11 -10 -10 -7 --------- Run | Yrd Mat Sub Rec Machines Accessed 11 | . 7 3 1 Terminals 6 | . 6 . . Fabricators . | . . . . Repair Stations 1 | . 1 . . Recycling Units 1 | . . . 1 Scanalyzers . | . . . . Garrison Access . | . . . . Total Hacks 25 | . 12 12 1 Successful 17 | . 4 12 1 Failed 8 | . 8 . . Catastrophic 5 | . 5 . . Database Lockouts . | . . . . Manual 8 | . 8 . . Terminals 11 | . 11 . . Fabricators . | . . . . Repair Stations 1 | . 1 . . Recycling Units 1 | . . . 1 Scanalyzers . | . . . . Garrison Access . | . . . . Terminal Hacks 15 | . 3 12 . Record 9 | . . 9 . Part Schematic 1 | . 1 . . Open Door 1 | . . 1 . Transport Status 1 | . 1 . . Zone Layout 1 | . 1 . . Derelict Proto ID Bank 1 | . . 1 . Release Object 1 | . . 1 . Fabricator Hacks . | . . . . Repair Station Hacks 1 | . 1 . . Refit 1 | . 1 . . Recycling Unit Hacks 1 | . . . 1 Report Inventory 1 | . . . 1 Scanalyzer . | . . . . Garrison Access Hacks . | . . . . Unauthorized Hacks . | . . . . Terminals . | . . . . Fabricators . | . . . . Repair Stations . | . . . . Recycling Units . | . . . . Scanalyzers . | . . . . Garrison Access . | . . . . Data Cores Recovered . | . . . . Used . | . . . . Hacking Detections 7 | . 7 . . Full Trace Events . | . . . . Feedback Events . | . . . . Feedback Blocked . | . . . . Robot Schematics Acquired . | . . . . Robots Built . | . . . . Authchips . | . . . . Time . | . . . . Total Robot Build Rating . | . . . . Part Schematics Acquired 1 | . 1 . . Parts Built . | . . . . Authchips . | . . . . Time . | . . . . Total Part Build Rating . | . . . . Parts Repaired . | . . . . Time . | . . . . Parts Recycled . | . . . . Recycled Matter . | . . . . Retrieved Matter . | . . . . Retrieved Components . | . . . . Parts Scanalyzed . | . . . . Part Schematics Acquired . | . . . . Parts Damaged . | . . . . Bothacking | -11 -10 -10 -7 ------------ Run | Yrd Mat Sub Rec Used RIF Installer . | . . . . Robots Hacked . | . . . . Non-combat . | . . . . Combat . | . . . . Robot Hacks Applied . | . . . . Relay Couplers Released . | . . . . Fabnet Peak Effective % . | . . . . Robots Rewired . | . . . . Allies Hacked . | . . . . Hacks Repelled . | . . . . Allies | -11 -10 -10 -7 -------- Run | Yrd Mat Sub Rec Total Allies . | . . . . Largest Group . | . . . . Highest-Rated Group . | . . . . Highest-Rated Ally . | . . . . Total Orders . | . . . . Ally Attacks . | . . . . Total Damage . | . . . . Kills . | . . . . Allies Corrupted . | . . . . Allies Melted . | . . . . Intel | -11 -10 -10 -7 ------- Run | Yrd Mat Sub Rec Robot Analysis Total . | . . . . Derelict Logs Recovered . | . . . . Drone Launches . | . . . . Drone Recoveries . | . . . . Exploration | -11 -10 -10 -7 ------------- Run | Yrd Mat Sub Rec Turns Passed 2273 | 55 937 1177 104 Spaces Moved 1267 | 32 390 766 79 Core 8 | 8 . . . Treads 569 | 24 390 155 . Legs . | . . . . Wheels 687 | . . 608 79 Hover 3 | . . 3 . Flight . | . . . . Fastest Speed 50 | 50 160 110 110 Average Speed 160 | 143 217 136 110 Slowest Speed 240 | 200 240 240 110 Overloaded Moves . | . . . . Propulsion Burnouts . | . . . . Robots Hopped . | . . . . Cave-ins Triggered . | . . . . Exploration Rate (%) 32 | 3 57 55 16 Regions Visited 3 Branch Regions 2 Pre-discovered Areas . | . . . . Known Exits Taken . | . . . . Unknown Exits Taken 3 | 1 1 1 . Scrap Searched . | . . . . Spaces Dug . | . . . . Terrain Destroyed 106 | . . 106 . Melee . | . . . . Projectile . | . . . . AOE 106 | . . 106 . Terrain Rammed . | . . . . Walls Destroyed . | . . . . Machines Disabled . | . . . . Actions | -11 -10 -10 -7 --------- Run | Yrd Mat Sub Rec Total 1385 | 38 431 827 89 Wait . | . . . . Move 1264 | 31 389 765 79 Hop . | . . . . Pick Up 19 | 1 7 10 1 Fast Attach 6 | 6 . . . Attach 6 | . 2 4 . Detach 2 | . 2 . . Swap 12 | . 4 7 1 Drop 9 | . 1 6 2 Fire 61 | . 22 34 5 Melee . | . . . . Ram . | . . . . Kick . | . . . . Crush 4 | . 4 . . Escape Stasis . | . . . . Rewire 1 | . . . 1 Trap . | . . . . Miscellaneous 1 | . . 1 . Route ------- -11/Scrapyard -10/Materials (discovered 4 exits: [*Mat x2] / [*Min] / *Sub) -10/Subcaves -7/Recycling History --------- Turn | Location | Event 15 | -11/Scrapyard | Discovered new exit (range 16) 56 | -11/Scrapyard | Entered Materials 229 | -10/Materials | Discovered new exit (range 7) 311 | -10/Materials | Build established: Mutant 456 | -10/Materials | Discovered new exit (range 13) 711 | -10/Materials | Discovered new exit (range 15) 804 | -10/Materials | Discovered new exit (range 9) 856 | -10/Materials | Derelicts attacked the area 993 | -10/Materials | Entered Subcaves 1162 | -10/Subcaves | Shifting Twisted Machinery released Battle Cannon 1166 | -10/Subcaves | Shifting Twisted Machinery released Sub. Shrapnel Launcher 1238 | -10/Subcaves | Core integrity fell below 50% 1411 | -10/Subcaves | Ambushed by Subdweller buried in earth 1439 | -10/Subcaves | Lost 3 parts (1p2n) 1685 | -10/Subcaves | Released subatomizers from SUBCON Basin 1768 | -10/Subcaves | Core integrity fell below 20% 1790 | -10/Subcaves | Visited 4L-MR0's lab 1811 | -10/Subcaves | Found Gun Armor 2081 | -10/Subcaves | Shifting Twisted Machinery released Barrage Gun 2081 | -10/Subcaves | Shifting Twisted Machinery released Battle Cannon 2104 | -10/Subcaves | Discovered new exit (range 11) 2170 | -10/Subcaves | Entered Recycling 2274 | -7/Recycling | Destroyed by Y-54 Guardian with Gatling Laser Last Messages --------------- 02195_ Connecting with Recycling Unit... 02195_ Current location identified: Recycling >>Recycling(Report) Matter reserves: 0 Inventory: Power Maul (42%) 02199_ Attempting to rewire Y-54 Guardian. 02199_ Y-54 Guardian is dormant, system inaccessible. 02237_ Discarded Targeting Computer. 02237_ Acquired Insulated Plating. 02246_ Sub. Monowheel shoots sparks and powers down. 02247_ Dropped Sub. Laser. 02247_ Acquired Missile Launcher. 02248_ Dropped Broken Sub. Monowheel. 02262_ Y-54 Guardian springs to life. 02265_ Sub. Monowheel destroyed. 02265_ Y-54 Guardian Imp. Heat Sink blasted off. 02269_ Acquired 3 matter. Map ----- +----------------------------------------------------+ | | | | | | | | | | | | | ?????????????????????????????????????????????????? | | ?????????????????????????????????????????????????? | | ?????????????????????????????????????????????????? | | ?????????????????????????????????????????????????? | | ?????????????????????????????????????????????????? | | ?????????????????????????????????????????????????? | | ?????????????????????????????????????????????????? | | ?????????????????????????????????????????????????? | | ?????????????????????????????????????????????????? | | ???????????#########?????????????????????????????? | | ???????????# #?????????????????????????????? | | ???????????# #?????????????????????????????? | | ???????????# #?????????????????????????????? | | ???????????# #?????????????????????????????? | | ???????????####+####?????????????????????????????? | | ??????????????# #???????????###########??????????? | | ###########???# #???????????# #??????????? | | #??## ##??????###?# = =#??????????? | | #??# ########Y### [#??????????? | | ##?# Y % @ %+/! #??????????? | | #?# ###"Y"######! ! #??????????? | | #??# #?#"""#????# #??????????? | | ##?# #?#####????# [#??????????? | | ### ##?????????# ! #??????????? | | ########+#### # ####????#####+#####??????????? | | ??# ?????????????????????? | | ??# ????????????????????? | | ??# ?????????????????????? | | ??######"Y"## #####+###"?????????????????????? | | ???????#"""########??????????????????????????????? | | ???????#####?????????????????????????????????????? | | ?????????????????????????????????????????????????? | | ?????????????????????????????????????????????????? | | ?????????????????????????????????????????????????? | | ?????????????????????????????????????????????????? | | ?????????????????????????????????????????????????? | | ?????????????????????????????????????????????????? | | ?????????????????????????????????????????????????? | | ?????????????????????????????????????????????????? | | ?????????????????????????????????????????????????? | | ?????????????????????????????????????????????????? | | ?????????????????????????????????????????????????? | | ?????????????????????????????????????????????????? | | ?????????????????????????????????????????????????? | +----------------------------------------------------+ Best States ------------- Heat Dissipation 25 Energy Generation 14 Energy Capacity 250 Matter Stores 300 Matter Capacity 300 Sight Range 16 Terrain Scan Density 10 Armor Coverage 150 Resistance: EM 15 Evasion (%) 40 Targeting Accuracy 5 Recoil Reduction 2 Item Schematics ----------------- Flight Unit | -10/Materials | Hacked Robot Schematics ------------------ None Fabricated ------------ Nothing Alien Tech Used ----------------- None Achievements -------------- None Challenges ------------ None Game ------ Seed CompactMasterDissipator Manual? 0 Play Time 00:25:17 Cumulative 36.6 hours Start 2024.12.05 @ 22:32:45 End 2024.12.05 @ 22:57:52 Sessions 1 Manual Loads 0 Difficulty Rogue Special Mode None Game No. 25 Rogue 19 Adventurer 6 Explorer 0 Win Type - Total 0 Types 0/0/0/0/0/0/0/0/0 Lore% 17 Gallery% 29 Achievement% 26 Wizard Run 0 Options --------- Layout 1 ASCII 0 Keyboard 0 Movement Arrows Keybinds 0 Fullscreen 2 Font 24/Smallcaps Map View 50x35 Zoom Use 1% Tactical HUD 1 Map Filters NONE Filters NONE Steam 1 RUN: 89f9a07a-ef85-4d8c-80b5-85ea7aa6b701